Cogmind - Beta 14 @@@ ROGUE MODE // 2025.01.09 @ 21:39:04 Player: nado Result: Destroyed by OD-EOY(R) with Subdweller Machine Gun Performance ------------- Evolutions (0) 0 Regions Visited (2) 400 Robots Destroyed (24) 120 Value Destroyed (646) 646 Prototype IDs (0) 0 Alien Tech Used (0) 0 Bonus (0) 0 TOTAL SCORE: 1166 Bonus ------- None Cogmind --------- Core Integrity 0/250 Matter 293/300 Energy 99/100 System Corruption 0% Temperature Cool (0) Movement Core (350) Ox6 Location -10/Subcaves Parts ------- > --- POWER (1) -------- (None) > --- PROPULSION (2) --- (None) > --- UTILITY (2) ------ Large Storage Unit > --- WEAPON (2) ------- Light Assault Rifle > --- INVENTORY (15) --- Ion Engine Ion Engine Light Ion Engine Light Nuclear Core Aluminum Leg Aluminum Leg Aluminum Leg Aluminum Leg Aluminum Leg Compact Wheel Heat Sink Small Storage Unit Sensor Array Light Armor Plating Peak State ------------ > --- POWER ------------ Ion Engine > --- PROPULSION ------- Light Treads Light Treads > --- UTILITY ---------- Large Storage Unit Signal Interpreter > --- WEAPON ----------- Medium Laser Light Assault Rifle > --- INVENTORY -------- Ion Engine Light Ion Engine Light Treads Aluminum Leg Compact Wheel Heat Sink Small Storage Unit Sensor Array Light Armor Plating EM Pulse Gun [Rating: 8] Favorites ----------- Power Ion Engine Engine Ion Engine Propulsion Light Treads Treads Light Treads Utility Large Storage Unit Storage Large Storage Unit Processor Signal Interpreter Weapon Medium Laser Energy Gun Medium Laser Ballistic Gun Light Assault Rifle Build | -11 -10 -10 ------- Run | Yrd Mat Sub Slots Evolved . | . . . Power . | . . . Propulsion . | . . . Utility . | . . . Weapon . | . . . Parts Attached 16 | 6 9 1 Power 3 | 1 2 . Engine 3 | 1 2 . Core . | . . . Reactor . | . . . Propulsion 4 | 2 2 . Treads 4 | 2 2 . Leg . | . . . Wheel . | . . . Hover . | . . . Flight . | . . . Utility 3 | 1 2 . Device . | . . . Storage 2 | 1 1 . Processor 1 | . 1 . Hackware . | . . . Protection . | . . . Artifact . | . . . Weapon 6 | 2 3 1 Energy Gun 4 | 2 1 1 Energy Cannon . | . . . Ballistic Gun 2 | . 2 . Ballistic Cannon . | . . . Launcher . | . . . Special Weapon . | . . . Impact Weapon . | . . . Slashing Weapon . | . . . Piercing Weapon . | . . . Special Melee Weapon . | . . . Unidentified Prototypes . | . . . Parts Lost 10 | . 5 5 Power 1 | . . 1 Propulsion 3 | . 1 2 Utility 1 | . 1 . Weapon 5 | . 3 2 Highest Loss Streak 5 | . 2 5 To Critical Strikes . | . . . Average Slot Usage (%) 93 | . 94 74 Engine 13 | . 14 10 Treads 26 | . 26 24 Storage 14 | . 14 14 Processor 9 | . 10 . Energy Gun 20 | . 21 11 Ballistic Gun 7 | . 6 14 Peak Build Rating 8 | 6 8 7 Average Rating 6 | 4 7 6 On Entrance 4 | . 6 7 Naked Turns . | . . . Heaviest Build 29 | 14 29 26 Greatest Support 40 | 40 40 20 Greatest Overweight (x) 8 | 3 8 1 Average Overweight (x) . | . . 1 Largest Inventory Capacity 15 | 8 15 15 Average Capacity 14 | 7 14 15 Most Carried 15 | 3 15 15 Average Carried 10 | 1 10 14 Final Capacity 15 | 8 15 15 Final Carried 15 | 3 15 14 Class Distribution -------------------- 100% | Mutant Dominant Class ---------------- Mutant | -10/Materials Mutant | -10/Subcaves Resources | -11 -10 -10 ----------- Run | Yrd Mat Sub Matter Collected 458 | 214 244 . Remotely . | . . . Salvage Created 789 | . 742 47 Parts 37 | . 35 2 Haulers Intercepted 1 | . 1 . Recyclers Shooed . | . . . Parts Field Recycled . | . . . Retrieved Matter . | . . . Parts Self-Destructed . | . . . Prevented . | . . . Kills | -11 -10 -10 ------- Run | Yrd Mat Sub Combat Hostiles Destroyed 21 | . 20 1 Guns 19 | . 18 1 Classes Destroyed 5 | . 4 1 Hauler 1 | . 1 . Watcher 2 | . 2 . Swarmer 6 | . 6 . Grunt 14 | . 14 . Subdweller 1 | . . 1 Best Kill Streak 4 | . 4 1 Combat Bots Only 4 | . 4 1 Max Kills in Single Turn 1 | . 1 1 Gunslinging . | . . . Exploded . | . . . Melee . | . . . Uniques/NPCs Destroyed . | . . . Combat | -11 -10 -10 -------- Run | Yrd Mat Sub Hostile Shots Fired 157 | . 135 22 Missed 46 | . 43 3 Damage Taken 1426 | . 1027 399 Core 264 | . 178 86 Absorbed by Shields . | . . . Regen/Repaired (Parts) 151 | . 151 . Core Remaining (%) 100 | 100 . . Volleys Fired 97 | . 86 11 Largest 2 | . 2 2 Hottest 100 | . 100 85 Shots Fired 192 | . 172 20 Gun 192 | . 172 20 Cannon . | . . . Launcher . | . . . Special . | . . . Kinetic 76 | . 65 11 Thermal 111 | . 104 7 Explosive . | . . . Electromagnetic 5 | . 3 2 Robot Hit Streak 14 | . 13 14 Robot Miss Streak 4 | . 4 1 Penetration Max . | . . . Secondary Targets 3 | . 2 1 Max Gunslinging Chain 1 | . 1 1 Shots Hit Robots 140 | . 121 19 Core Hits 45 | . 41 4 Critical Kills . | . . . Critical Parts Destroyed . | . . . Critical Strikes 9 | . 8 1 Burn 9 | . 8 1 Melee Attacks . | . . . Impact . | . . . Slashing . | . . . Piercing . | . . . Sneak Attacks . | . . . Combat Hostiles . | . . . Follow-up Attacks . | . . . Damage Inflicted 1550 | . 1364 186 Guns 1515 | . 1329 186 Cannons . | . . . Explosions 27 | . 27 . Melee . | . . . Ramming 8 | . 8 . Kinetic 429 | . 360 69 Thermal 1063 | . 956 107 Explosive . | . . . Electromagnetic 50 | . 40 10 Impact . | . . . Slashing . | . . . Piercing . | . . . Highest Corruption . | . . . Average Corruption . | . . . Corruption Purged . | . . . Corruption Blocked . | . . . Overload Shots . | . . . Overflow Damage . | . . . Projectiles . | . . . Explosions . | . . . Melee . | . . . Knockbacks . | . . . Impact . | . . . Kinetic . | . . . Secondary . | . . . Self-Inflicted Damage 31 | . 31 . Shots 1 | . 1 . Rammed 3 | . 3 . Targets Rammed 3 | . 3 . Kicked . | . . . Crushed . | . . . Highest Temperature 485 | . 485 . Average Temperature 114 | . 114 . Received Heat Transfer 498 | . 474 24 Effects 2 | . 2 . Shutdowns 1 | . 1 . Matter Decay 1 | . 1 . Siege Activations . | . . . Robots Corrupted . | . . . Combat Hostiles . | . . . Parts Fried . | . . . Impact Corruptions . | . . . Robots Melted 2 | . 2 . Combat Hostiles 2 | . 2 . Parts Melted 14 | . 13 1 Heat Transferred 3713 | . 3380 333 Parts Sabotaged . | . . . Parts Stolen . | . . . Parts Stripped . | . . . Power Chain Reactions 1 | . 1 . Alert | -11 -10 -10 ------- Run | Yrd Mat Sub Peak Influence 333 | . 333 . Initial . | . . . Average 122 | . 128 . Maximum Alert Level 1 | . 1 . Low Security (%) 70 | 100 69 . Level 1 29 | . 30 . Level 2 . | . . . Level 3 . | . . . Level 4 . | . . . Level 5 . | . . . High Security . | . . . Max Security . | . . . Squads Dispatched 5 | . 5 . Investigation 2 | . 2 . Extermination . | . . . Reinforcement 3 | . 3 . Assault . | . . . Garrison . | . . . Intercept . | . . . Searches Triggered . | . . . Construction Impeded . | . . . Haulers Reinforced . | . . . Active Scanning Responses . | . . . Cargo Convoy Interrupts . | . . . Stealth | -11 -10 -10 --------- Run | Yrd Mat Sub Distress Signals . | . . . Communications Jammed . | . . . Distress Signals . | . . . Times Spotted 33 | . 31 2 Peak Tracking Total 5 | . 5 2 Tactical Retreats 5 | . 5 . Traps | -11 -10 -10 ------- Run | Yrd Mat Sub Traps Triggered 1 | . 1 . Indirectly . | . . . Trap Hack Attempts . | . . . Triggered . | . . . Disarmed . | . . . Reprogrammed . | . . . Reused . | . . . Traps Extracted . | . . . Installed . | . . . Triggered . | . . . Machines | -11 -10 -10 ---------- Run | Yrd Mat Sub Machines Disabled 1 | . 1 . Max in Single Turn 1 | . 1 . Machines Repaired . | . . . Machines Dismantled . | . . . Machines Sabotaged . | . . . Overloaded Fab Kills . | . . . Hacking | -11 -10 -10 --------- Run | Yrd Mat Sub Machines Accessed 2 | . 2 . Terminals 1 | . 1 . Fabricators . | . . . Repair Stations 1 | . 1 . Recycling Units . | . . . Scanalyzers . | . . . Garrison Access . | . . . Total Hacks 8 | . 8 . Successful 5 | . 5 . Failed 3 | . 3 . Catastrophic 1 | . 1 . Database Lockouts . | . . . Manual 2 | . 2 . Terminals 2 | . 2 . Fabricators . | . . . Repair Stations 6 | . 6 . Recycling Units . | . . . Scanalyzers . | . . . Garrison Access . | . . . Terminal Hacks . | . . . Fabricator Hacks . | . . . Repair Station Hacks 5 | . 5 . Scan Component 2 | . 2 . Repair 2 | . 2 . Refit 1 | . 1 . Recycling Unit Hacks . | . . . Scanalyzer . | . . . Garrison Access Hacks . | . . . Unauthorized Hacks . | . . . Terminals . | . . . Fabricators . | . . . Repair Stations . | . . . Recycling Units . | . . . Scanalyzers . | . . . Garrison Access . | . . . Data Cores Recovered . | . . . Used . | . . . Hacking Detections 1 | . 1 . Full Trace Events 1 | . 1 . Feedback Events . | . . . Feedback Blocked . | . . . Robot Schematics Acquired . | . . . Robots Built . | . . . Authchips . | . . . Time . | . . . Total Robot Build Rating . | . . . Part Schematics Acquired . | . . . Parts Built . | . . . Authchips . | . . . Time . | . . . Total Part Build Rating . | . . . Parts Repaired 2 | . 2 . Time 52 | . 52 . Parts Recycled . | . . . Recycled Matter . | . . . Retrieved Matter . | . . . Retrieved Components . | . . . Parts Scanalyzed . | . . . Part Schematics Acquired . | . . . Parts Damaged . | . . . Bothacking | -11 -10 -10 ------------ Run | Yrd Mat Sub Used RIF Installer . | . . . Robots Hacked . | . . . Non-combat . | . . . Combat . | . . . Robot Hacks Applied . | . . . Relay Couplers Released . | . . . Fabnet Peak Effective % . | . . . Robots Rewired . | . . . Allies Hacked . | . . . Hacks Repelled . | . . . Allies | -11 -10 -10 -------- Run | Yrd Mat Sub Total Allies . | . . . Largest Group . | . . . Highest-Rated Group . | . . . Highest-Rated Ally . | . . . Total Orders . | . . . Ally Attacks . | . . . Total Damage . | . . . Kills . | . . . Allies Corrupted . | . . . Allies Melted . | . . . Intel | -11 -10 -10 ------- Run | Yrd Mat Sub Robot Analysis Total . | . . . Derelict Logs Recovered 1 | . . 1 Drone Launches . | . . . Drone Recoveries . | . . . Exploration | -11 -10 -10 ------------- Run | Yrd Mat Sub Turns Passed 1850 | 84 1657 109 Spaces Moved 692 | 49 612 31 Core 22 | 14 8 . Treads 670 | 35 604 31 Legs . | . . . Wheels . | . . . Hover . | . . . Flight . | . . . Fastest Speed 50 | 50 160 240 Average Speed 183 | 150 183 240 Slowest Speed 450 | 200 450 240 Overloaded Moves . | . . . Propulsion Burnouts . | . . . Robots Hopped . | . . . Cave-ins Triggered . | . . . Exploration Rate (%) 28 | 4 76 4 Regions Visited 2 Branch Regions 1 Pre-discovered Areas 1 | . . 1 Known Exits Taken 1 | . 1 . Unknown Exits Taken 1 | 1 . . Scrap Searched . | . . . Spaces Dug . | . . . Terrain Destroyed 4 | . 4 . Melee . | . . . Projectile . | . . . AOE 4 | . 4 . Terrain Rammed . | . . . Walls Destroyed . | . . . Machines Disabled . | . . . Actions | -11 -10 -10 --------- Run | Yrd Mat Sub Total 1093 | 57 988 48 Wait 266 | . 261 5 Move 690 | 48 611 31 Hop . | . . . Pick Up 18 | 3 15 . Fast Attach 9 | 6 3 . Attach 4 | . 3 1 Detach . | . . . Swap 3 | . 3 . Drop 3 | . 3 . Fire 97 | . 86 11 Melee . | . . . Ram . | . . . Kick . | . . . Crush 3 | . 3 . Escape Stasis . | . . . Rewire . | . . . Trap . | . . . Miscellaneous . | . . . Route ------- -11/Scrapyard -10/Materials (discovered 5 exits: *Mat x3 / [*Min] / *Sub) -10/Subcaves History --------- Turn | Location | Event 35 | -11/Scrapyard | Discovered new exit (range 15) 85 | -11/Scrapyard | Entered Materials 301 | -10/Materials | Build established: Mutant 479 | -10/Materials | Discovered new exit (range 4) 526 | -10/Materials | Identified exit to Subcaves 747 | -10/Materials | Discovered new exit (range 8) 757 | -10/Materials | Identified exit to Materials 863 | -10/Materials | Discovered new exit (range 8) 1148 | -10/Materials | Discovered exit to Materials (range 10) 1202 | -10/Materials | Discovered exit to Materials (range 11) 1292 | -10/Materials | Repaired Lgt. Treads 1327 | -10/Materials | Repaired Lgt. Treads 1357 | -10/Materials | Core integrity fell below 50% 1742 | -10/Materials | Entered Subcaves 1788 | -10/Subcaves | Learned location of Zion (-6) 1838 | -10/Subcaves | Core integrity fell below 20% 1851 | -10/Subcaves | Destroyed by OD-EOY(R) with Subdweller Machine Gun Last Messages --------------- 01518_ U-05 Engineer builds a Wall. 01518_ U-05 Engineer lays Concrete. 01542_ K-01 Serf cleans the Hadron Collector. 01640_ K-01 Serf cleans the Material Compactor. LOCATION=SUBCAVES AMBIENT_HEAT=-10 GOAL=ESCAPE 01788_ Acquired derelict log, extracted data. World map updated: -6/Zion. 01825_ Lgt. Ion Engine destroyed. 01827_ EM Pulse Gun destroyed. 01831_ Lgt. Treads destroyed. 01838_ Disposable Heat Sink melted. 01838_ 67-JML(R) destroyed. 01838_ Switching to secondary target: OD-EOY(R). 01846_ OD-EOY(R) affixes Scrap Shield Fragment to Scrap Shield. 01847_ Lgt. Treads destroyed. 01849_ OD-EOY(R) suffers critical hit (Burn). 01849_ Particle Gun destroyed. 01850_ Subatomizers dissect the Sub. Optics. Map ----- +----------------------------------------------------+ | | | | | | | | | | | | | | | ?????????????????????????????????????????????????? | | ?????????????????????????????????????????????????? | | ?????????????????????????????????????????????????? | | ?????????????????????????????????????????????????? | | ?????????????????????????????????????????????????? | | ?????????????????????????????????????????????????? | | ?????????????????????????????????????????????????? | | ?????????????????????????????????????????????????? | | ?????????????????????????????????????????????????? | | ?????????????????????????????????????????????????? | | ?????????????????????????????????????????????????? | | ?????????????????????????????????????????????????? | | ?????????????????????????????????????????????????? | | ?????????????????????????????????????????????????? | | ??????####???????#######????###??????????????????? | | ??????# ######### ## ##### ##?????????????????? | | ??????# *""" #?????????????????? | | ??????# ## R%" ##????????????????? | | ??????# # ## ## ### @!"""""" ?????????????? | | ????### #############?#### """" ????????????????? | | ???## #????????????????? "" ???????????????? | | ?### ##????????????????"" ## ?????????????? | | ## ###??????????????"""#??? ??????????????? | | ##??????????????"" ??????????????????? | | ## #??????????????"" ?????????????????? | | ## #????????????????? ????????????????? | | ##????????????????? ????????????????? | | ## #??????????????????????????????????? | | ## ## #?????????????????????????????????? | | ##? ???????????????????????????????? | | ##??? #??????????????????????????????? | | ##????#####??????????????????????????????? | | #########????????????????????????????????????????? | | ?????????????????????????????????????????????????? | | ?????????????????????????????????????????????????? | | ?????????????????????????????????????????????????? | | ?????????????????????????????????????????????????? | | ?????????????????????????????????????????????????? | | ?????????????????????????????????????????????????? | | ?????????????????????????????????????????????????? | | ?????????????????????????????????????????????????? | | ?????????????????????????????????????????????????? | | ?????????????????????????????????????????????????? | +----------------------------------------------------+ Best States ------------- Heat Dissipation 25 Energy Generation 10 Energy Capacity 250 Matter Stores 300 Matter Capacity 300 Sight Range 16 Terrain Scan Density 10 Evasion (%) 40 Recoil Reduction 2 Item Schematics ----------------- None Robot Schematics ------------------ None Fabricated ------------ Nothing Alien Tech Used ----------------- None Achievements -------------- None Challenges ------------ None Game ------ Seed RefineryCatalystEdition Manual? 0 Play Time 00:13:44 Cumulative 68.4 hours Start 2025.01.09 @ 21:22:50 End 2025.01.09 @ 21:39:04 Sessions 1 Manual Loads 0 Difficulty Rogue Special Mode None Game No. 45 Rogue 45 Adventurer 0 Explorer 0 Win Type - Total 1 Types 1/0/0/0/0/0/0/0/0 Lore% 26 Gallery% 34 Achievement% 33 Wizard Run 0 Options --------- Layout 0 ASCII 0 Keyboard 1 Movement Vi Keybinds 0 Fullscreen 2 Font 18/Terminus Map View 76x50 Zoom Use 0% Tactical HUD 1 Map Filters NONE Filters NONE Steam 1 RUN: ec9e3423-bf33-4ffc-b08d-b86b512f5fa8